bitfinex/quotes_BTCUSD_20251224
["timestamp","ask_amount","ask_price","bid_price","bid_amount"]
[1766598703971,0.01144898,87344.0,87333.0,0.08018225]
[1766598704303,0.06869576,87342.0,87333.0,0.01148]
[1766598704454,0.06869714,87340.0,87333.0,0.01148]
[1766598704811,0.0114495,87340.0,87333.0,0.01148]
[1766598704992,0.0686973,87340.0,87333.0,0.01148]
[1766598705216,0.01144963,87339.0,87333.0,0.01148]
[1766598705428,0.0114495,87340.0,87333.0,0.01148]
[1766598705635,0.06869654,87341.0,87333.0,0.01148]
[1766598705989,0.0114495,87340.0,87333.0,0.01148]
[1766598706462,0.27480116,87352.0,87336.0,0.01145003]
[1766598706463,0.01144872,87346.0,87336.0,0.01145003]
[1766598706672,0.11597,87355.0,87346.0,0.01144872]
[1766598706806,0.11597,87355.0,87346.0,0.06869207]
[1766598707007,0.11597,87355.0,87346.0,0.01144872]
[1766598707208,0.01144767,87354.0,87343.0,0.01148]
[1766598707433,0.0114478,87353.0,87343.0,0.02292911]
[1766598707805,0.01144767,87354.0,87344.0,0.01144898]
[1766598708153,0.01144767,87354.0,87345.0,0.01144885]
[1766598708481,0.12741754,87355.0,87344.0,0.01144898]
[1766598708693,0.01144767,87354.0,87344.0,0.01144898]
[1766598708901,0.11597,87355.0,87346.0,0.01144872]
[1766598709047,0.12741754,87355.0,87345.0,0.01144885]
[1766598709478,0.06868736,87353.0,87343.0,0.01148]
[1766598709661,0.12741754,87355.0,87343.0,0.02292911]
[1766598709861,0.11597,87355.0,87344.0,0.01144898]
[1766598710062,0.12741754,87355.0,87344.0,0.01144898]
[1766598710397,0.18465537,87355.0,87345.0,0.01144885]
[1766598710597,0.01144767,87354.0,87344.0,0.01144898]
[1766598710801,0.18465537,87355.0,87345.0,0.01144885]
[1766598711014,0.12741754,87355.0,87345.0,0.01144885]
[1766598711223,0.06868625,87354.0,87344.0,0.01144898]
[1766598711802,0.12741754,87355.0,87344.0,0.06869327]
[1766598712588,0.12741754,87355.0,87345.0,0.01144885]
[1766598713001,0.12741754,87355.0,87346.0,0.01144872]
[1766598713429,0.01144767,87354.0,87345.0,0.01144885]
[1766598713662,0.01144767,87354.0,87344.0,0.06869327]
[1766598713946,0.01144767,87354.0,87345.0,0.01144885]
[1766598714287,0.01144767,87354.0,87344.0,0.01144898]
[1766598714493,0.11597,87355.0,87348.0,0.01144845]
[1766598714727,0.11597,87355.0,87350.0,0.01144819]
[1766598715270,0.11597,87355.0,87343.0,0.01148]
[1766598715466,0.05724322,87347.0,87332.0,0.01145055]
[1766598715691,0.12741872,87346.0,87336.0,0.01145003]
[1766598715832,0.0686948,87343.0,87334.0,0.00011]
[1766598716036,0.11597,87344.0,87335.0,0.01148]
[1766598716246,0.11597,87344.0,87335.0,0.02293016]
[1766598716658,0.11597,87344.0,87336.0,0.01145003]
[1766598716855,0.11597,87344.0,87334.0,0.00011]
[1766598717056,0.01144859,87347.0,87336.0,0.01145003]
[1766598717421,0.02292845,87348.0,87337.0,0.0114499]
[1766598717558,0.06869155,87347.0,87337.0,0.0114499]
[1766598717771,0.12741872,87346.0,87336.0,0.01145003]
[1766598717964,0.11597,87346.0,87337.0,0.0114499]
[1766598718750,0.01144793,87352.0,87342.0,0.01144924]
[1766598718967,0.01159,87354.0,87344.0,0.01144898]
[1766598719202,0.01159,87354.0,87347.0,0.06869118]
[1766598719428,0.12837675,87361.0,87347.0,0.06869118]
[1766598719429,0.11693,87361.0,87354.0,0.01144767]
[1766598719596,0.01144662,87362.0,87352.0,0.01144793]
[1766598719810,0.01144596,87367.0,87357.0,0.01144727]
[1766598720006,0.01144623,87365.0,87355.0,0.01144754]
[1766598720396,0.01144649,87363.0,87353.0,0.08016678]
[1766598720578,0.06867817,87364.0,87353.0,0.01148]
[1766598720579,0.06868136,87360.0,87353.0,0.01148]
[1766598720775,0.06868448,87356.0,87340.0,0.0114495]
[1766598720980,0.70227341,87380.0,87332.0,0.00010618]
[1766598720981,0.11693,87366.0,87356.0,0.01144741]
[1766598721245,0.01144675,87361.0,87354.0,0.01148]
[1766598721439,0.06868054,87361.0,87354.0,0.01148]
[1766598721675,0.01144701,87359.0,87354.0,0.01148]
[1766598721896,0.1283761,87366.0,87354.0,0.01148]
[1766598722068,0.11693,87366.0,87356.0,0.05723692]
[1766598722279,0.01144623,87365.0,87355.0,0.01144754]
[1766598722474,0.02292583,87368.0,87354.0,0.01148]
[1766598722475,0.01144675,87361.0,87354.0,0.01148]
[1766598722649,0.01144714,87358.0,87354.0,0.01148]
[1766598722854,0.01144701,87359.0,87354.0,0.01148]
[1766598723235,0.06868018,87362.0,87354.0,0.01148]
[1766598723435,0.01144714,87358.0,87354.0,0.01148]
[1766598723657,0.01144727,87357.0,87354.0,0.01148]
[1766598723862,0.01144714,87358.0,87354.0,0.01148]
[1766598724444,0.01144727,87357.0,87354.0,0.01148]
[1766598724777,0.06868289,87358.0,87354.0,0.01148]
[1766598724979,0.01144727,87357.0,87355.0,0.01148]
[1766598725183,0.06868704,87353.0,87341.0,0.01144937]
[1766598725382,0.11693,87349.0,87339.0,0.01144963]
[1766598725613,0.11693,87349.0,87345.0,0.00011]
[1766598726339,0.12837832,87349.0,87345.0,0.00011]
[1766598726549,0.01144845,87348.0,87345.0,0.00011]
[1766598726747,0.01144911,87343.0,87337.0,0.01148]
[1766598727144,0.06869528,87343.0,87337.0,0.01148]
[1766598727390,0.01144924,87342.0,87337.0,0.01148]
[1766598727602,0.1856244,87344.0,87337.0,0.01148]
[1766598727829,0.01144911,87343.0,87337.0,0.01148]
[1766598728484,0.0114495,87340.0,87337.0,0.01148]
[1766598728662,0.12837963,87339.0,87335.0,0.01148]
[1766598729078,0.11693,87339.0,87335.0,0.01148]
[1766598729214,0.12837963,87339.0,87335.0,0.01148]
[1766598729448,0.11693,87339.0,87334.0,0.00011]
[1766598730482,0.01144976,87338.0,87334.0,0.00011]
[1766598730692,0.0114499,87337.0,87334.0,0.00011]
[1766598730859,0.11693,87332.0,87327.0,0.01148]
[1766598731058,0.12838055,87332.0,87324.0,0.01159]
[1766598731465,0.11693,87332.0,87324.0,0.01159]
[1766598731697,0.11693,87332.0,87324.0,0.0230416]
[1766598731889,0.11693,87332.0,87326.0,0.01145134]
[1766598732137,0.11693,87332.0,87327.0,0.01145121]
[1766598732591,0.11693,87332.0,87328.0,0.01145108]
[1766598732764,0.11693,87332.0,87327.0,0.06870706]
[1766598732990,0.11693,87332.0,87327.0,0.01145121]
[1766598733195,0.11693,87332.0,87326.0,0.06870742]
[1766598733796,0.11693,87332.0,87327.0,0.06870725]
[1766598734057,0.01148,87337.0,87329.0,0.01145094]
[1766598734461,0.0229299,87337.0,87327.0,0.01145121]
[1766598734688,0.0229299,87337.0,87328.0,0.01145108]
[1766598734896,0.1398599,87337.0,87327.0,0.06870672]
[1766598735101,0.1398599,87337.0,87328.0,0.01145108]
[1766598735312,0.12841,87337.0,87329.0,0.01145094]
[1766598735510,0.12841,87337.0,87329.0,0.06870555]
[1766598735643,0.12841,87337.0,87330.0,0.01145081]
[1766598736058,0.00011,87344.0,87334.0,0.01145029]
[1766598736260,0.01148,87343.0,87336.0,0.01145003]
[1766598736517,0.01148,87343.0,87337.0,0.0572494]
[1766598736664,0.01148,87343.0,87336.0,0.06869962]
[1766598737180,0.0114495,87340.0,87326.0,0.01145134]
[1766598737388,0.01148,87343.0,87329.0,0.01284]
[1766598737539,0.01148,87343.0,87338.0,0.01144976]
[1766598738116,0.01148,87343.0,87339.0,0.01144963]
[1766598738311,0.01148,87343.0,87335.0,0.0687004]
[1766598738520,0.00011,87344.0,87336.0,0.06869963]
[1766598738737,0.00011,87344.0,87342.0,0.05724621]
[1766598738952,0.11693,87357.0,87348.0,0.01144845]
[1766598739156,0.12848623,87365.0,87354.0,0.01144767]
[1766598739358,0.01144662,87362.0,87354.0,0.01148]
[1766598739708,0.01144675,87361.0,87354.0,0.01148]
[1766598739909,0.01144688,87360.0,87354.0,0.01148]
[1766598740112,0.06868059,87361.0,87354.0,0.01148]
[1766598740321,0.01144662,87362.0,87354.0,0.01148]
[1766598740968,0.22903511,87365.0,87351.0,0.01148]
[1766598740969,0.06868698,87353.0,87351.0,0.01148]
[1766598741117,0.06868698,87353.0,87343.0,0.01144911]
[1766598741118,0.11693,87355.0,87350.0,0.01148]
[1766598743940,0.01144885,87345.0,87336.0,0.01276]
[1766598744143,0.06869239,87346.0,87337.0,0.01148]
[1766598744463,0.01144845,87348.0,87337.0,0.0229299]
[1766598744464,0.06869121,87348.0,87337.0,0.0229299]
[1766598744672,0.01144859,87347.0,87338.0,0.01144976]
[1766598744838,0.06869089,87348.0,87338.0,0.01144976]
[1766598745038,0.06869125,87349.0,87338.0,0.06869859]
[1766598745238,0.06869125,87349.0,87339.0,0.06869778]
[1766598745239,0.01144832,87349.0,87339.0,0.06869778]
[1766598745442,0.01144845,87348.0,87339.0,0.06869778]
[1766598745696,0.06868997,87349.0,87339.0,0.01144963]
[1766598746402,0.01144872,87346.0,87337.0,0.01148]
[1766598746950,0.06869233,87346.0,87337.0,0.01148]
[1766598747170,0.01144872,87346.0,87337.0,0.0229299]
[1766598747368,0.01144872,87346.0,87337.0,0.01148]
[1766598747569,0.01144872,87346.0,87337.0,0.0229299]
[1766598747965,0.01144885,87345.0,87337.0,0.01148]
[1766598748632,0.01144872,87346.0,87337.0,0.0229299]
[1766598749157,0.01144872,87346.0,87337.0,0.08017934]
[1766598749348,0.01144859,87347.0,87338.0,0.06869855]
[1766598749554,0.13019845,87348.0,87339.0,0.01144963]
[1766598749686,0.18744095,87348.0,87339.0,0.01144963]
[1766598750111,0.01144859,87347.0,87337.0,0.08017934]
[1766598750289,0.13019845,87348.0,87338.0,0.06869853]
[1766598750491,0.22896159,87351.0,87324.0,0.0115616]
[1766598750492,0.01144898,87344.0,87324.0,0.0115616]
[1766598750741,0.01144898,87344.0,87328.0,0.06870642]
[1766598750742,0.118857,87338.0,87328.0,0.06870642]
[1766598750916,0.11875,87338.0,87330.0,0.06870435]
[1766598751102,0.11875,87338.0,87331.0,0.01145068]
[1766598751524,0.06869679,87341.0,87331.0,0.01145068]
[1766598751719,0.0114495,87340.0,87331.0,0.01145068]
[1766598752173,0.01144963,87339.0,87330.0,0.01145081]
[1766598752372,0.06869942,87337.0,87329.0,0.01148]
[1766598752573,0.01145003,87336.0,87329.0,0.01148]
[1766598752795,0.06869942,87337.0,87329.0,0.01148]
[1766598752975,0.01145003,87336.0,87329.0,0.01148]
[1766598753296,0.06869942,87337.0,87329.0,0.01148]
[1766598754191,0.06869869,87338.0,87329.0,0.01148]
[1766598754400,0.01144976,87338.0,87329.0,0.02293094]
[1766598754823,0.0114499,87337.0,87329.0,0.01148]
[1766598756412,0.01144937,87341.0,87329.0,0.02293094]
[1766598756612,0.0114499,87337.0,87329.0,0.01148]
[1766598757316,0.01145003,87336.0,87329.0,0.01148]
[1766598757508,0.0686998,87337.0,87329.0,0.01148]
[1766598757646,0.0114495,87340.0,87322.0,0.01276]
[1766598757647,0.01145055,87332.0,87322.0,0.01276]
[1766598757836,0.06870347,87332.0,87325.0,0.01148]
[1766598758035,6.8e-07,87331.0,87325.0,0.01148]
[1766598758313,4.15e-06,87332.0,87325.0,0.01148]
[1766598758543,4.15e-06,87332.0,87322.0,0.02421186]
[1766598758544,0.01145055,87332.0,87326.0,0.01148]
[1766598758746,0.01145029,87334.0,87326.0,0.01148]
[1766598758747,0.01145042,87333.0,87326.0,0.01148]
[1766598758960,0.01145055,87332.0,87326.0,0.01148]
[1766598759193,0.0687029,87333.0,87326.0,0.01148]
[1766598759784,0.01145068,87331.0,87324.0,0.00011]
[1766598759959,0.06870449,87332.0,87327.0,0.011373]
[1766598760347,0.06870261,87333.0,87327.0,0.011373]
[1766598760528,0.01145055,87332.0,87327.0,0.011373]
[1766598760724,0.06870261,87333.0,87327.0,0.011373]
[1766598761376,0.01145055,87332.0,87327.0,0.011373]
[1766598762159,0.01145042,87333.0,87327.0,0.011373]
[1766598762361,0.01145055,87332.0,87327.0,0.011373]
[1766598762740,0.01145081,87330.0,87327.0,0.011373]
[1766598762929,0.06870424,87331.0,87327.0,0.011373]
[1766598763104,0.01145055,87332.0,87327.0,0.011373]
[1766598763513,0.01145068,87331.0,87327.0,0.011373]
[1766598763716,0.01145081,87330.0,87327.0,0.011373]
[1766598763893,0.06870436,87331.0,87327.0,0.011373]
[1766598764103,0.06870436,87331.0,87324.0,0.00011]
[1766598764104,0.1139,87328.0,87318.0,0.0572616]
[1766598764484,0.11398123,87328.0,87320.0,0.02293213]
[1766598764883,0.11398123,87328.0,87320.0,0.01148]
[1766598765651,0.11398123,87328.0,87321.0,0.01145199]
[1766598766102,0.11398123,87328.0,87320.0,0.0687404]
[1766598766305,0.11398123,87328.0,87321.0,0.01148]
[1766598766511,0.0114516,87324.0,87321.0,0.01148]
[1766598766741,0.06870892,87325.0,87324.0,0.000549]
[1766598766957,0.05725682,87326.0,87324.0,0.000549]
[1766598767240,0.06870816,87326.0,87321.0,0.01148]
[1766598767651,0.01148,87334.0,87327.0,0.01145121]
[1766598767866,0.01148,87334.0,87327.0,0.06870708]
[1766598768010,0.01148,87334.0,87328.0,0.05725523]
[1766598768215,0.01148,87334.0,87328.0,0.01145108]
[1766598768919,0.01148,87334.0,87327.0,0.01145121]
[1766598769119,0.1139,87338.0,87334.0,0.000549]
[1766598769340,0.1139,87338.0,87330.0,0.06870486]
[1766598769547,0.01148,87339.0,87331.0,0.01145068]
[1766598769717,0.01148,87344.0,87337.0,0.0114499]
[1766598769939,0.01148,87344.0,87336.0,0.05724959]
[1766598770117,0.01148,87344.0,87337.0,0.0114499]
[1766598770318,0.01148,87344.0,87336.0,0.01145003]
[1766598770515,0.01148,87344.0,87336.0,0.06869965]
[1766598770799,0.01148,87344.0,87336.0,0.06869961]
[1766598771012,0.010931,87344.0,87336.0,0.06869961]
[1766598771215,0.01144911,87343.0,87333.0,0.06870254]
[1766598771425,0.13627998,87344.0,87335.0,0.01145016]
[1766598771602,0.1139,87343.0,87332.0,0.01145055]
[1766598771745,0.12534924,87342.0,87333.0,0.01145042]
[1766598771945,0.18259586,87342.0,87333.0,0.01145042]
[1766598772166,0.12534924,87342.0,87332.0,0.05725273]
[1766598772366,0.12534924,87342.0,87334.0,0.01145029]
[1766598772589,0.12534924,87342.0,87335.0,0.01145016]
[1766598772590,0.1139,87342.0,87335.0,0.01145016]
[1766598772970,0.1139,87342.0,87334.0,0.01145029]
[1766598773165,0.1139,87342.0,87335.0,0.01145016]
[1766598773675,0.1139,87342.0,87334.0,0.0687015]
[1766598774036,0.1139,87342.0,87335.0,0.01148]
[1766598774413,0.1139,87342.0,87335.0,0.02293016]
[1766598774619,0.1139,87342.0,87335.0,0.01148]
[1766598774826,0.12534924,87342.0,87335.0,0.01148]
[1766598775032,0.1139,87342.0,87335.0,0.01148]
[1766598775228,0.1139,87342.0,87335.0,0.01038]
[1766598775427,0.00011,87348.0,87340.0,0.0114495]
[1766598775632,0.12534885,87345.0,87342.0,0.00055]
[1766598775832,0.12534885,87345.0,87335.0,0.00874111]
[1766598775833,0.12534937,87341.0,87335.0,0.00874111]
[1766598776050,0.06869338,87345.0,87335.0,0.00874111]
[1766598776254,0.06869338,87345.0,87336.0,0.01145003]
[1766598776489,0.1139,87344.0,87335.0,0.06599131]
[1766598776658,0.1139,87344.0,87337.0,0.0114499]
[1766598777178,0.1139,87344.0,87336.0,0.01145003]
[1766598777533,0.1139,87344.0,87336.0,0.06870006]
[1766598777739,0.1139,87344.0,87336.0,0.01145003]
[1766598778055,0.12534898,87344.0,87335.0,0.07744084]
[1766598778265,0.1139,87344.0,87336.0,0.01145003]
[1766598778463,0.1139,87344.0,87336.0,0.06869994]
[1766598778667,0.1139,87344.0,87336.0,0.01145003]
[1766598779019,0.12188,87343.0,87336.0,0.01145003]
[1766598779506,0.12188,87343.0,87337.0,0.0114499]
[1766598779917,0.12188,87343.0,87336.0,0.01145003]
[1766598780124,0.12188,87343.0,87335.0,0.02019127]
[1766598780338,0.0686937,87345.0,87319.0,0.01145226]
[1766598780339,0.01199916,87335.0,87319.0,0.01145226]
[1766598780535,0.12188,87331.0,87325.0,0.01145147]
[1766598780778,0.39409543,87338.0,87320.0,0.01145213]
[1766598780779,0.01148,87344.0,87336.0,0.01145003]
[1766598780983,0.01148,87344.0,87337.0,0.0114499]
[1766598781230,0.01148,87344.0,87339.0,0.06869758]
[1766598781431,0.02292898,87344.0,87336.0,0.01145003]
[1766598781565,0.08017437,87344.0,87334.0,0.06870049]
[1766598781770,0.08017437,87344.0,87335.0,0.01145016]
[1766598781971,0.02292898,87344.0,87335.0,0.06870091]
[1766598782189,0.01148,87344.0,87336.0,0.01145003]
[1766598782403,0.08017437,87344.0,87334.0,0.06870049]
[1766598782573,0.02292898,87344.0,87335.0,0.06870095]
[1766598783179,0.01148,87344.0,87336.0,0.01145003]
[1766598783481,0.12188,87359.0,87349.0,0.01144832]
[1766598783802,0.01148,87358.0,87349.0,0.06868935]
[1766598783996,0.02292714,87358.0,87349.0,0.01144832]
[1766598784200,0.02292714,87358.0,87346.0,0.06869178]
[1766598784201,0.01144741,87356.0,87347.0,0.01144859]
[1766598784863,0.01144741,87356.0,87343.0,0.25190964]
[1766598784864,0.000549,87347.0,87343.0,0.02292911]
[1766598785064,0.000549,87347.0,87344.0,0.01144898]
[1766598785260,0.0686862,87354.0,87344.0,0.01144898]
[1766598785462,0.01144806,87351.0,87343.0,0.01148]
[1766598785667,0.01144845,87348.0,87343.0,0.01148]
[1766598785862,0.12188,87342.0,87333.0,0.01145042]
[1766598786087,0.12188,87342.0,87337.0,0.05724946]
[1766598786298,0.12188,87342.0,87337.0,0.06869936]
[1766598786558,0.12188,87342.0,87338.0,0.01144976]
[1766598787141,0.12188,87342.0,87336.0,0.0686989]
[1766598787513,0.12188,87342.0,87337.0,0.06869932]
[1766598787755,0.12188,87342.0,87338.0,0.01144976]
[1766598788157,0.12188,87349.0,87339.0,0.01144963]
[1766598788501,0.01148,87348.0,87340.0,0.0114495]
[1766598789254,0.01148,87348.0,87341.0,0.01144937]
[1766598789839,0.01148,87348.0,87340.0,0.0114495]
[1766598790031,0.02292845,87348.0,87339.0,0.06869718]
[1766598790334,0.000549,87339.0,87327.0,0.01145121]
[1766598790528,0.12188,87337.0,87329.0,0.02293094]
[1766598790730,0.12188,87337.0,87330.0,0.06870469]
[1766598790942,0.12188,87337.0,87330.0,0.01145081]
[1766598791158,0.12188,87337.0,87329.0,0.02293094]
[1766598791309,0.12188,87337.0,87330.0,0.01145081]
[1766598791677,0.01145016,87335.0,87329.0,0.01148]
[1766598792013,0.13333016,87335.0,87329.0,0.010931]
[1766598792196,0.12188,87335.0,87329.0,0.010931]
[1766598792583,0.13333016,87335.0,87329.0,0.010931]
[1766598792784,0.05725162,87334.0,87329.0,0.010931]
[1766598793007,0.01145029,87334.0,87329.0,0.010931]
[1766598793547,0.19058102,87335.0,87329.0,0.010931]
[1766598794321,0.12188,87335.0,87329.0,0.010931]
[1766598794517,0.05725004,87338.0,87329.0,0.010931]
[1766598794724,0.0114499,87337.0,87329.0,0.02238194]
[1766598794950,0.0114499,87337.0,87329.0,0.010931]
[1766598795152,0.06870044,87336.0,87329.0,0.010931]
[1766598795311,0.06869999,87337.0,87329.0,0.010931]
[1766598796131,0.0114499,87337.0,87329.0,0.02238194]
[1766598796375,0.46279247,87340.0,87330.0,0.01145081]
[1766598796576,0.01144832,87349.0,87338.0,0.01144976]
[1766598796778,0.01148,87344.0,87337.0,0.0114499]
[1766598797982,0.01148,87344.0,87335.0,0.06870033]
[1766598798287,0.01148,87344.0,87337.0,0.0114499]
[1766598799282,0.01144963,87339.0,87335.0,0.01148]
[1766598799507,0.00055,87335.0,87323.0,0.01145173]
[1766598799729,0.00055,87335.0,87329.0,0.01148]
[1766598799730,0.13333042,87333.0,87329.0,0.01148]
[1766598799963,0.12188,87332.0,87328.0,0.01159]
[1766598800347,0.121331,87332.0,87328.0,0.01159]
[1766598800968,0.1214041,87332.0,87328.0,0.01159]
[1766598801112,0.1214041,87332.0,87328.0,0.02304108]
[1766598801722,7.31e-05,87332.0,87328.0,0.02304108]
[1766598801918,7.31e-05,87332.0,87328.0,0.01159]
[1766598802167,7.31e-05,87332.0,87328.0,0.02304108]
[1766598802518,7.31e-05,87332.0,87328.0,0.08029648]
[1766598802721,7.31e-05,87332.0,87329.0,0.01145094]
[1766598802948,7.31e-05,87332.0,87329.0,0.06870565]
[1766598803373,0.05724681,87342.0,87332.0,0.01145055]
[1766598803611,0.12188,87347.0,87338.0,0.01144976]
[1766598803832,0.01148,87349.0,87333.0,0.01148]
[1766598804019,0.13332767,87354.0,87344.0,0.06869375]
[1766598804221,0.0114478,87353.0,87342.0,0.06869489]
[1766598804520,0.06868733,87353.0,87343.0,0.06869443]
[1766598804719,0.01144793,87352.0,87343.0,0.06869443]
[1766598804946,0.01144819,87350.0,87341.0,0.08017623]
[1766598805166,0.12199,87365.0,87345.0,0.22897625]
[1766598805391,0.12199,87365.0,87362.0,0.07325923]
[1766598805392,0.00021643,87365.0,87362.0,0.07325923]
[1766598805589,0.0114457,87369.0,87362.0,0.07216023]
[1766598805766,0.01144596,87367.0,87362.0,0.07216023]
[1766598806131,0.01144623,87365.0,87362.0,0.07216023]
[1766598806331,0.05723181,87364.0,87362.0,0.07216023]
[1766598807350,0.19055863,87365.0,87362.0,0.07216023]
[1766598807601,0.13332623,87365.0,87362.0,0.07216023]
[1766598807987,0.12188,87365.0,87362.0,0.07216023]
[1766598809625,0.0651727,87397.0,87362.0,0.07216023]
[1766598809836,0.01,87418.0,87362.0,0.07216023]
[1766598809837,0.11273,87396.0,87387.0,0.01144334]
[1766598810037,0.00010155,87403.0,87397.0,0.01144204]
[1766598810244,0.00010155,87403.0,87399.0,0.06865053]
[1766598810245,0.01148,87402.0,87399.0,0.06865053]
[1766598810446,0.00010155,87403.0,87400.0,0.01144164]
[1766598810653,0.01148,87402.0,87399.0,0.01144177]
[1766598810854,0.01148,87402.0,87398.0,0.0114419]
[1766598811053,0.01148,87402.0,87397.0,0.06865205]
[1766598811268,0.01148,87402.0,87395.0,0.08470153]
[1766598811269,0.010931,87402.0,87395.0,0.07325923]
[1766598811673,0.010931,87402.0,87395.0,0.08470153]
[1766598811847,0.010931,87402.0,87395.0,0.07325923]
[1766598812235,0.00010155,87403.0,87395.0,0.07271023]
[1766598812441,0.01158155,87403.0,87395.0,0.08415253]
[1766598812806,0.0230228,87403.0,87395.0,0.07271023]
[1766598812983,0.01158155,87403.0,87395.0,0.07271023]
[1766598813355,0.0230228,87403.0,87395.0,0.07271023]
[1766598814342,0.01144177,87399.0,87395.0,0.07271023]
[1766598815046,0.18137992,87400.0,87395.0,0.07271023]
[1766598815653,0.18137992,87400.0,87395.0,0.07154363]
[1766598815950,0.01158155,87403.0,87396.0,0.05721085]
[1766598816156,1.55e-06,87403.0,87401.0,0.05720758]
[1766598816807,1.55e-06,87403.0,87401.0,0.05720745]
[1766598816925,1.55e-06,87403.0,87397.0,0.01144204]
[1766598817127,1.55e-06,87403.0,87394.0,0.05721168]
[1766598818181,0.0114428,87403.0,87395.0,0.07154363]
[1766598818355,0.1241728,87403.0,87395.0,0.07154363]
[1766598818753,0.06864851,87402.0,87395.0,0.07154363]
[1766598818967,0.01144164,87400.0,87395.0,0.07154363]
[1766598819365,0.01144151,87401.0,87395.0,0.07154363]
[1766598819756,0.06864916,87401.0,87395.0,0.07154363]
[1766598819958,0.01144138,87402.0,87395.0,0.07154363]
[1766598820163,0.01144151,87401.0,87395.0,0.07154363]
[1766598820560,0.01144164,87400.0,87395.0,0.07154363]
[1766598821299,0.01144151,87401.0,87395.0,0.07154363]
[1766598821501,0.05720821,87401.0,87395.0,0.07154363]
[1766598821820,0.01144177,87399.0,87395.0,0.07154363]
[1766598822026,0.01144164,87400.0,87395.0,0.07154363]
[1766598822382,0.05720821,87401.0,87395.0,0.07154363]
[1766598822773,0.06864972,87401.0,87395.0,0.07154363]
[1766598822905,0.01144177,87399.0,87395.0,0.07154363]
[1766598823101,0.01144256,87393.0,87385.0,0.07325923]
[1766598823305,0.0114419,87398.0,87385.0,0.08470284]
[1766598823306,0.12421,87392.0,87385.0,0.08470284]
[1766598823529,0.01148,87391.0,87385.0,0.08470284]
[1766598823748,0.01148,87390.0,87388.0,0.01144321]
[1766598824026,0.06865073,87399.0,87389.0,0.01144308]
[1766598824231,0.01144204,87397.0,87387.0,0.06865989]
[1766598824765,0.01144217,87396.0,87387.0,0.01144334]
[1766598825286,0.06865285,87397.0,87387.0,0.01144334]
[1766598825462,0.01144217,87396.0,87387.0,0.01144334]
[1766598826103,0.01144217,87396.0,87386.0,0.06877048]
[1766598826355,0.18838285,87397.0,87386.0,0.01155348]
[1766598826664,0.11973,87396.0,87386.0,0.01155348]
[1766598826955,0.11973,87396.0,87387.0,0.06866008]
[1766598827094,0.13117217,87396.0,87387.0,0.01144334]
[1766598827546,0.13117217,87396.0,87386.0,0.01155348]
[1766598828351,0.1883832,87396.0,87386.0,0.01155348]
[1766598828923,0.0114423,87395.0,87386.0,0.01155348]
[1766598829128,0.11973,87395.0,87386.0,0.01155348]
[1766598829972,0.1311723,87395.0,87386.0,0.01155348]
[1766598830335,0.11973,87395.0,87387.0,0.01144334]
[1766598830542,0.11973,87395.0,87388.0,0.01144321]
[1766598830758,0.11973,87395.0,87387.0,0.01144334]
[1766598831079,0.11973,87395.0,87386.0,0.01155348]
[1766598831407,0.11973,87395.0,87386.0,0.06877082]
[1766598831632,0.11973,87395.0,87387.0,0.01144334]
[1766598831883,0.000549,87387.0,87386.0,0.00011]
[1766598832070,0.11973,87384.0,87375.0,0.06866952]
[1766598832351,0.11973,87384.0,87382.0,0.05722001]
[1766598832562,8.82e-05,87383.0,87379.0,0.01144439]
[1766598832711,0.01148,87382.0,87380.0,0.06866519]
[1766598832889,0.01148,87382.0,87380.0,0.01144426]
[1766598833093,0.01148,87382.0,87380.0,0.06866543]
[1766598833706,0.01148,87382.0,87381.0,0.05722067]
[1766598833937,0.0076076,87382.0,87381.0,0.05722067]
[1766598834530,0.11973,87410.0,87377.0,0.07316225]
[1766598834737,0.11973,87410.0,87407.0,0.01144073]
[1766598834854,0.000549,87407.0,87406.0,0.01144086]
[1766598835060,0.012029,87407.0,87406.0,0.06864517]
[1766598835298,0.012029,87407.0,87405.0,0.0686453]
[1766598835511,0.01148,87407.0,87401.0,0.06864845]
[1766598835709,0.01148,87407.0,87401.0,0.06864883]
[1766598835917,0.01148,87407.0,87400.0,0.01144164]
[1766598836115,0.01148,87407.0,87402.0,0.01144138]
[1766598836319,0.01148,87407.0,87398.0,0.0114419]
[1766598836320,0.11973,87398.0,87387.0,0.01144334]
[1766598836575,0.11973,87396.0,87388.0,0.05721609]
[1766598836745,0.11973,87396.0,87389.0,0.01144308]
[1766598837148,0.11973,87396.0,87388.0,0.05721609]
[1766598837355,0.11973,87396.0,87390.0,0.01144295]
[1766598837652,0.11973,87396.0,87391.0,0.01144282]
[1766598837854,0.11973,87396.0,87390.0,0.01144295]
[1766598838311,0.001099,87390.0,87387.0,0.01154489]
[1766598838505,0.13117217,87396.0,87387.0,0.00010155]
[1766598838711,0.01148,87395.0,87387.0,0.00010155]
[1766598838927,0.1431323,87395.0,87387.0,0.00010155]
[1766598839239,0.13165269,87392.0,87387.0,0.00010155]
[1766598839559,0.13165282,87391.0,87387.0,0.00010155]
[1766598840038,0.01144308,87389.0,87380.0,0.01144426]
[1766598840279,0.01148,87388.0,87381.0,0.01144413]
[1766598840401,0.01148,87388.0,87381.0,0.06866479]
[1766598840893,0.01148,87388.0,87382.0,0.011444]
[1766598841097,0.01148,87388.0,87383.0,0.01144387]
[1766598841312,0.01148,87388.0,87379.0,0.06866577]
[1766598841313,0.12021,87387.0,87371.0,0.00011]
[1766598841472,0.12021,87385.0,87376.0,0.07325923]
[1766598841696,0.13165361,87385.0,87376.0,0.08470402]
[1766598841899,0.12021,87385.0,87377.0,0.01144465]
[1766598842102,0.12021,87385.0,87377.0,0.06866786]
[1766598842309,0.12021,87385.0,87378.0,0.01144452]
[1766598842886,0.12021,87385.0,87377.0,0.01144465]
[1766598843277,0.12021,87385.0,87378.0,0.01144452]
[1766598843470,0.12021,87385.0,87375.0,0.06866825]
[1766598843659,0.13165361,87385.0,87375.0,0.06866825]
[1766598844316,0.13165361,87385.0,87376.0,0.01144479]
[1766598844696,0.12021,87385.0,87375.0,0.06866825]
[1766598844865,0.12021,87385.0,87377.0,0.01144465]
[1766598845684,0.12021,87386.0,87376.0,0.01144479]
[1766598845888,0.12021,87386.0,87377.0,0.01144465]
[1766598846089,0.12021,87386.0,87377.0,0.06866783]
[1766598846582,0.12021,87386.0,87378.0,0.01144452]
[1766598846719,0.12021,87386.0,87379.0,0.01144439]
[1766598847322,0.13165348,87386.0,87376.0,0.06866865]
[1766598847681,0.13165348,87386.0,87336.0,0.14284402]
[1766598847682,0.12021,87384.0,87366.0,0.22892006]
[1766598847884,0.13165426,87380.0,87370.0,0.01144557]
[1766598848079,0.05724,87379.0,87370.0,0.0686734]